[Event "71st RUS-ch Higher League 2018"]
[Site "Yaroslavl"]
[Date "2018.07.03"]
[Round "7"]
[White "Yanchenko, Roman"]
[Black "Sakaev, Konstantin"]
[Result "0-1"]
[ECO "D70"]
[WhiteElo "2462"]
[BlackElo "2580"]
[Annotator "ChessBase"]
[PlyCount "94"]
[EventDate "2018.06.26"]
[EventType "swiss"]
[EventCountry "RUS"]
[SourceTitle "playchess.com"]
[Source "ChessBase"]
[SourceQuality "1"]
[TimeControl "40/5400+30:1800+30"]

1. d4 {[%emt 0:00:00]} Nf6 {[%emt 0:00:00]} 2. c4 {[%emt 0:00:00]} g6 {[%emt 0:00:07]} 3. Nf3 {[%emt 0:00:11]} Bg7 {[%emt 0:00:15]} 4. Nc3 {[%emt 0:01:24]} d5 {[%emt 0:00:33]} 5. g3 {[%emt 0:01:32]} O-O {[%emt 0:01:21]} 6. Bg2 {[%emt 0:00:15]} dxc4 {[%emt 0:00:45]} 7. O-O {[%emt 0:01:13]} c6 {[%emt 0:03:56]} 8. e3 {[%emt 0:02:50]} Nbd7 {[%emt 0:14:32]} 9. Qe2 {[%emt 0:01:34]} b5 {[%emt 0:01:20]} 10. a4 {[%emt 0:02:34]} b4 {[%emt 0:07:37]} 11. Nb1 {[%emt 0:00:07]} Ba6 {[%emt 0:01:49]} 12. Nbd2 {[%emt 0:02:59]} Rc8 {[%emt 0:01:29]} 13. Rd1 {[%emt 0:16:03]} c5 {[%emt 0:01:45]} 14. Ne5 {[%emt 0:00:27]} Qc7 {[%emt 0:17:41]} 15. Nc6 {[%emt 0:08:03]} Nb8 {[%emt 0:03:14]} 16. Nxb8 {[%emt 0:02:04]} Rxb8 {[%emt 0:01:03]} 17. d5 {[%emt 0:00:33]} Nd7 {[%emt 0:01:31]} 18. e4 {[%emt 0:00:50]} b3 {[%emt 0:08:16]} 19. Bf1 {[%emt 0:04:02]} Rb4 {[%emt 0:02:01]} 20. f4 {[%emt 0:02:50]} c3 {[%emt 0:04:07]} 21. Qxa6 {[%emt 0:00:04]} cxb2 {[%emt 0:00:09]} 22. Bxb2 {[%emt 0:01:42]} Bxb2 {[%emt 0:00:10]} 23. Rab1 {[%emt 0:00:01]} Bd4+ {[%emt 0:00:12]} 24. Kh1 {[%emt 0:00:48]} b2 {[%emt 0:01:14]} 25. Nf3 {[%emt 0:02:44]} Nf6 {[%emt 0:06:38]} 26. Qe2 {[%emt 0:05:41]} Rfb8 {[%emt 0:00:30]} 27. Bg2 {[%emt 0:03:34]} Qa5 {[%emt 0:04:28]} 28. Ng5 {[%emt 0:09:41]} h6 {[%emt 0:02:49]} 29. Nxf7 {[%emt 0:00:03]} Kxf7 {[%emt 0:00:43]} 30. e5 {[%emt 0:00:04]} Ng8 {[%emt 0:05:07]} 31. Qg4 {[%emt 0:01:41]} Bc3 {[%emt 0:06:02]} 32. d6 {[%emt 0:04:14]} h5 {[%emt 0:03:53]} 33. Bd5+ {[%emt 0:03:06]} Kg7 {[%emt 0:00:04]} 34. Qe6 {[%emt 0:00:05]} Qd8 {[%emt 0:00:30]} 35. f5 {[%emt 0:02:06]} gxf5 {[%emt 0:01:03]} 36. Rf1 {[%emt 0:08:54]} Qe8 {[%emt 0:00:11]} 37. Rxf5 {[%emt 0:10:42]} Qg6 {[%emt 0:00:05]} 38. Qd7 {[%emt 0:00:01]} R4b7 {[%emt 0:00:49]} 39. Bxb7 {[%emt 0:00:48]} Rxb7 {[%emt 0:00:05]} 40. Qxb7 {[%emt 0:00:00]} Qxf5 {[%emt 0:00:00]} 41. Rg1 {[%emt 0:01:41]} Qxe5 {[%emt 0:03:22]} 42. g4 {[%emt 0:06:13]} h4 {[%emt 0:04:18]} 43. d7 {[%emt 0:06:21]} Qd4 {[%emt 0:03:06]} 44. g5 {[%emt 0:00:33]} h3 {[%emt 0:01:38]} 45. d8=Q {[%emt 0:01:45]} Qxd8 {[%emt 0:00:09]} 46. Qf3 {[%emt 0:00:10]} Qd2 {[%emt 0:03:50]} 47. Rf1 {[%emt 0:11:15]} Qg2+ {[%emt 0:00:33]} 0-1

[Event "71st RUS-ch Higher League 2018"]
[Site "Yaroslavl"]
[Date "2018.07.03"]
[Round "7"]
[White "Girya, Olga"]
[Black "Lomasov, Semen"]
[Result "1/2-1/2"]
[ECO "A40"]
[WhiteElo "2457"]
[BlackElo "2549"]
[Annotator "ChessBase"]
[PlyCount "80"]
[EventDate "2018.06.26"]
[EventType "swiss"]
[EventCountry "RUS"]
[SourceTitle "playchess.com"]
[Source "ChessBase"]
[SourceQuality "1"]
[TimeControl "40/5400+30:1800+30"]

1. d4 {[%emt 0:00:00]} e6 {[%emt 0:00:00]} 2. Nf3 {[%emt 0:00:00]} f5 {[%emt 0:00:00]} 3. g3 {[%emt 0:01:33]} b6 {[%emt 0:00:00]} 4. Bg2 {[%emt 0:00:25]} Bb7 {[%emt 0:00:04]} 5. O-O {[%emt 0:02:36]} Nf6 {[%emt 0:00:06]} 6. c4 {[%emt 0:00:23]} Be7 {[%emt 0:00:06]} 7. Nc3 {[%emt 0:00:24]} O-O {[%emt 0:00:07]} 8. Qc2 {[%emt 0:09:50]} Na6 {[%emt 0:22:09]} 9. Bg5 {[%emt 0:02:42]} Nb4 {[%emt 0:09:45]} 10. Qb3 {[%emt 0:01:28]} Nc6 {[%emt 0:04:55]} 11. a3 {[%emt 0:10:24]} Ne4 {[%emt 0:00:52]} 12. Bxe7 {[%emt 0:00:34]} Qxe7 {[%emt 0:00:11]} 13. Qc2 {[%emt 0:03:12]} Nd8 {[%emt 0:05:59]} 14. Rfd1 {[%emt 0:09:06]} a5 {[%emt 0:05:24]} 15. Ne1 {[%emt 0:04:51]} Nxc3 {[%emt 0:04:48]} 16. Qxc3 {[%emt 0:00:05]} a4 {[%emt 0:00:05]} 17. Qb4 {[%emt 0:13:10]} d6 {[%emt 0:01:16]} 18. Rac1 {[%emt 0:01:46]} Bxg2 {[%emt 0:02:52]} 19. Nxg2 {[%emt 0:00:24]} Nc6 {[%emt 0:01:08]} 20. Qb5 {[%emt 0:02:10]} Qe8 {[%emt 0:01:51]} 21. d5 {[%emt 0:00:32]} Nd8 {[%emt 0:00:30]} 22. Qxe8 {[%emt 0:07:23]} Rxe8 {[%emt 0:00:13]} 23. Ne3 {[%emt 0:00:56]} g6 {[%emt 0:00:57]} 24. dxe6 {[%emt 0:00:15]} Nxe6 {[%emt 0:00:30]} 25. Nd5 {[%emt 0:00:15]} Kf7 {[%emt 0:00:37]} 26. Kg2 {[%emt 0:02:24]} Ra5 {[%emt 0:00:46]} 27. Nc3 {[%emt 0:02:36]} Nc5 {[%emt 0:01:36]} 28. Rc2 {[%emt 0:00:30]} Re5 {[%emt 0:08:45]} 29. Nb5 {[%emt 0:04:24]} Ne6 {[%emt 0:01:13]} 30. e3 {[%emt 0:02:19]} Rc5 {[%emt 0:01:12]} 31. Nd4 {[%emt 0:02:54]} Ra8 {[%emt 0:00:48]} 32. h4 {[%emt 0:04:15]} h5 {[%emt 0:07:45]} 33. Nb5 {[%emt 0:01:53]} Ra5 {[%emt 0:10:08]} 34. Rc3 {[%emt 0:02:06]} d5 {[%emt 0:01:35]} 35. cxd5 {[%emt 0:00:54]} Raxb5 {[%emt 0:00:11]} 36. dxe6+ {[%emt 0:00:05]} Kxe6 {[%emt 0:00:04]} 37. Rxc5 {[%emt 0:01:07]} Rxc5 {[%emt 0:00:06]} 38. Rd2 {[%emt 0:00:55]} Rd5 {[%emt 0:04:43]} 39. Rc2 {[%emt 0:01:03]} c5 {[%emt 0:00:06]} 40. Kf3 {[%emt 0:00:00]} Ke5 {[%emt 0:00:00]} 1/2-1/2

[Event "71st RUS-ch Higher League 2018"]
[Site "Yaroslavl"]
[Date "2018.07.03"]
[Round "7"]
[White "Gogolev, Artem"]
[Black "Bykov, Egor"]
[Result "1-0"]
[ECO "A11"]
[WhiteElo "2407"]
[BlackElo "2373"]
[Annotator "NA"]
[PlyCount "73"]
[EventDate "2018.06.26"]
[EventType "swiss"]
[EventCountry "RUS"]
[SourceTitle "playchess.com"]
[Source "ChessBase"]
[SourceQuality "1"]
[TimeControl "40/5400+30:1800+30"]

1. c4 {[%emt 0:00:00]} c6 {[%emt 0:00:05]} 2. Nf3 {[%emt 0:00:00]} d5 {[%emt 0:00:16]} 3. g3 {[%emt 0:00:22]} Nf6 {[%emt 0:00:26]} 4. Bg2 {[%emt 0:00:07]} Bg4 {[%emt 0:00:11]} 5. O-O {[%emt 0:00:28]} e6 {[%emt 0:00:21]} 6. d3 {[%emt 0:00:37]} Nbd7 {[%emt 0:00:32]} 7. Nc3 {[%emt 0:00:31]} Bc5 {[%emt 0:07:32]} 8. h3 {[%emt 0:01:59]} Bh5 {[%emt 0:02:38]} 9. cxd5 {[%emt 0:07:42]} exd5 {[%emt 0:01:22]} 10. e4 {[%emt 0:02:14]} O-O {[%emt 0:03:54]} 11. g4 {[%emt 0:09:44]} Bg6 {[%emt 0:00:11]} 12. e5 {[%emt 0:00:17]} Ne8 {[%emt 0:00:21]} 13. h4 {[%emt 0:06:14]} h6 {[%emt 0:15:31]} 14. d4 {[%emt 0:04:39]} Bb6 {[%emt 0:08:36]} 15. Re1 {[%emt 0:11:09]} Nc7 {[%emt 0:00:58]} 16. h5 {[%emt 0:04:43]} Bh7 {[%emt 0:00:49]} 17. g5 {[%emt 0:01:07]} hxg5 {[%emt 0:05:20]} 18. Bxg5 {[%emt 0:03:31]} f6 {[%emt 0:02:26]} 19. exf6 {[%emt 0:02:29]} Nxf6 {[%emt 0:02:16]} 20. a4 {[%emt 0:02:59]} a5 {[%emt 0:04:52]} 21. Qb3 {[%emt 0:10:57]} Ba7 {[%emt 0:00:05]} 22. Re5 {[%emt 0:02:06]} Qc8 {[%emt 0:06:24]} 23. h6 {[%emt 0:02:00]} Ne6 {[%emt 0:08:07]} 24. hxg7 {[%emt 0:02:15]} Kxg7 {[%emt 0:00:34]} 25. Rxe6 {[%emt 0:09:15]} Qxe6 {[%emt 0:00:05]} 26. Qxb7+ {[%emt 0:00:06]} Kh8 {[%emt 0:08:47]} 27. Re1 {[%emt 0:00:55]} Ne4 {[%emt 0:01:16]} 28. Bf4 {[%emt 0:00:20]} Kg8 {[%emt 0:14:02]} 29. Ng5 {[%emt 0:07:02]} Qf5 {[%emt 0:00:06]} 30. Ncxe4 {[%emt 0:00:41]} Bxd4 {[%emt 0:03:55]} 31. Nxh7 {[%emt 0:07:19]} Ra7 {[%emt 0:01:04]} 32. Qxc6 {[%emt 0:00:29]} Rxh7 {[%emt 0:00:25]} 33. Bg3 {[%emt 0:01:00]} Rg7 {[%emt 0:01:38]} 34. Rd1 {[%emt 0:00:54]} Rxg3 {[%emt 0:00:57]} 35. Rxd4 {[%emt 0:00:08]} dxe4 {[%emt 0:00:55]} 36. Qc4+ {[%emt 0:00:26]} Kg7 {[%emt 0:00:01]} 37. Qc7+ {[%emt 0:00:08]} 1-0

[Event "71st RUS-ch Higher League 2018"]
[Site "Yaroslavl"]
[Date "2018.07.03"]
[Round "7"]
[White "Tekeyev, Zaur"]
[Black "Sek, Konstantin"]
[Result "1/2-1/2"]
[ECO "C50"]
[WhiteElo "2407"]
[BlackElo "2476"]
[Annotator "ChessBase"]
[PlyCount "177"]
[EventDate "2018.06.26"]
[EventType "swiss"]
[EventCountry "RUS"]
[SourceTitle "playchess.com"]
[Source "ChessBase"]
[SourceQuality "1"]
[TimeControl "40/5400+30:1800+30"]

1. e4 {[%emt 0:00:00]} e5 {[%emt 0:00:00]} 2. Nf3 {[%emt 0:00:00]} Nc6 {[%emt 0:00:00]} 3. Bc4 {[%emt 0:00:00]} Nf6 {[%emt 0:00:00]} 4. d3 {[%emt 0:00:11]} Bc5 {[%emt 0:00:00]} 5. O-O {[%emt 0:00:22]} O-O {[%emt 0:00:00]} 6. Bg5 {[%emt 0:00:48]} h6 {[%emt 0:02:38]} 7. Bh4 {[%emt 0:00:12]} Be7 {[%emt 0:00:12]} 8. Bg3 {[%emt 0:00:15]} d6 {[%emt 0:00:14]} 9. a4 {[%emt 0:00:11]} Nh7 {[%emt 0:08:25]} 10. a5 {[%emt 0:11:14]} Bg4 {[%emt 0:05:15]} 11. h3 {[%emt 0:09:17]} Bh5 {[%emt 0:00:54]} 12. c3 {[%emt 0:04:16]} Ng5 {[%emt 0:01:21]} 13. Nbd2 {[%emt 0:00:28]} a6 {[%emt 0:08:24]} 14. Kh1 {[%emt 0:43:49]} Kh8 {[%emt 0:26:09]} 15. Bd5 {[%emt 0:04:18]} Nxf3 {[%emt 0:23:47]} 16. Nxf3 {[%emt 0:00:26]} Bg5 {[%emt 0:00:30]} 17. Bh2 {[%emt 0:10:04]} Qf6 {[%emt 0:00:25]} 18. g4 {[%emt 0:01:42]} Bg6 {[%emt 0:00:01]} 19. Nxg5 {[%emt 0:04:39]} hxg5 {[%emt 0:00:57]} 20. h4 {[%emt 0:00:55]} gxh4 {[%emt 0:09:08]} 21. f4 {[%emt 0:00:03]} exf4 {[%emt 0:00:45]} 22. Bxf4 {[%emt 0:00:13]} Bh7 {[%emt 0:02:32]} 23. g5 {[%emt 0:04:02]} Qg6 {[%emt 0:00:10]} 24. Qg4 {[%emt 0:00:37]} Ne7 {[%emt 0:01:00]} 25. Bc4 {[%emt 0:03:55]} f5 {[%emt 0:00:16]} 26. exf5 {[%emt 0:00:01]} Qxf5 {[%emt 0:03:35]} 27. Qxf5 {[%emt 0:00:07]} Bxf5 {[%emt 0:00:25]} 28. Rae1 {[%emt 0:00:40]} Rae8 {[%emt 0:02:31]} 29. Bh2 {[%emt 0:00:15]} g6 {[%emt 0:01:14]} 30. Rf4 {[%emt 0:00:41]} Nc6 {[%emt 0:00:17]} 31. Rxh4+ {[%emt 0:01:02]} Kg7 {[%emt 0:00:01]} 32. Rxe8 Rxe8 33. b4 {[%emt 0:01:13]} Re1+ {[%emt 0:00:29]} 34. Kg2 {[%emt 0:00:27]} Re2+ {[%emt 0:00:34]} 35. Kf3 {[%emt 0:00:33]} Rc2 {[%emt 0:00:07]} 36. b5 {[%emt 0:00:26]} axb5 {[%emt 0:01:06]} 37. Bxb5 {[%emt 0:00:04]} Nxa5 {[%emt 0:00:50]} 38. Bg1 {[%emt 0:00:36]} c5 {[%emt 0:02:25]} 39. Ra4 {[%emt 0:00:35]} b6 {[%emt 0:00:06]} 40. Ra3 {[%emt 0:00:00]} Rb2 {[%emt 0:00:00]} 41. Ba6 {[%emt 0:11:44]} Be6 {[%emt 0:06:59]} 42. Be3 {[%emt 0:11:14]} Bd5+ {[%emt 0:00:47]} 43. Kf4 {[%emt 0:01:35]} Rb1 {[%emt 0:00:26]} 44. c4 {[%emt 0:02:31]} Rf1+ {[%emt 0:01:18]} 45. Kg4 {[%emt 0:00:05]} Bf3+ {[%emt 0:01:14]} 46. Kg3 {[%emt 0:00:57]} Be2 {[%emt 0:00:40]} 47. d4 {[%emt 0:04:01]} Nc6 {[%emt 0:06:31]} 48. dxc5 {[%emt 0:00:53]} bxc5 {[%emt 0:00:07]} 49. Bf4 {[%emt 0:01:31]} Ne7 {[%emt 0:01:54]} 50. Bd2 {[%emt 0:00:51]} Nf5+ {[%emt 0:00:16]} 51. Kg2 {[%emt 0:00:14]} Kf7 {[%emt 0:01:18]} 52. Bb7 {[%emt 0:00:43]} Ne7 {[%emt 0:02:36]} 53. Ba6 {[%emt 0:00:27]} Rd1 {[%emt 0:00:30]} 54. Ra2 {[%emt 0:00:52]} d5 {[%emt 0:00:35]} 55. Kf2 {[%emt 0:00:29]} Bxc4 {[%emt 0:01:39]} 56. Bxc4 {[%emt 0:00:05]} dxc4 {[%emt 0:00:03]} 57. Rc2 {[%emt 0:00:29]} c3 {[%emt 0:01:00]} 58. Bxc3 {[%emt 0:00:13]} Rd5 {[%emt 0:00:14]} 59. Bb2 {[%emt 0:01:20]} Nc6 {[%emt 0:00:27]} 60. Ba3 {[%emt 0:00:30]} Ne5 {[%emt 0:01:34]} 61. Ke3 {[%emt 0:00:36]} Nd7 {[%emt 0:00:43]} 62. Rg2 {[%emt 0:00:31]} Ke6 {[%emt 0:00:25]} 63. Bb2 {[%emt 0:00:19]} Nb6 {[%emt 0:03:32]} 64. Bf6 {[%emt 0:00:20]} Rf5 {[%emt 0:01:45]} 65. Ke4 {[%emt 0:00:50]} Nd5 {[%emt 0:00:19]} 66. Bh8 {[%emt 0:00:28]} Rf4+ {[%emt 0:01:18]} 67. Kd3 {[%emt 0:00:01]} Rf3+ {[%emt 0:01:33]} 68. Kd2 {[%emt 0:00:30]} Nf4 {[%emt 0:02:15]} 69. Rg1 {[%emt 0:01:01]} Kf5 {[%emt 0:03:20]} 70. Bf6 {[%emt 0:00:30]} Rf2+ {[%emt 0:01:00]} 71. Ke3 {[%emt 0:00:16]} Re2+ {[%emt 0:00:11]} 72. Kf3 {[%emt 0:00:00]} Rc2 {[%emt 0:00:35]} 73. Re1 {[%emt 0:00:17]} Nd3 {[%emt 0:00:07]} 74. Re8 {[%emt 0:01:17]} c4 {[%emt 0:00:15]} 75. Ke3 {[%emt 0:00:23]} Nf2 {[%emt 0:02:07]} 76. Kf3 {[%emt 0:00:28]} Ng4 {[%emt 0:00:35]} 77. Bd8 {[%emt 0:00:42]} Rc3+ {[%emt 0:00:48]} 78. Ke2 {[%emt 0:00:15]} Rc2+ {[%emt 0:00:09]} 79. Kf3 {[%emt 0:00:18]} Ne5+ {[%emt 0:00:14]} 80. Ke3 {[%emt 0:00:07]} Rc3+ {[%emt 0:00:15]} 81. Ke2 {[%emt 0:00:37]} Rb3 {[%emt 0:01:28]} 82. Bf6 {[%emt 0:00:50]} Nc6 {[%emt 0:00:36]} 83. Rc8 {[%emt 0:00:27]} Rb6 {[%emt 0:00:11]} 84. Ke3 {[%emt 0:00:47]} Ke6 {[%emt 0:00:16]} 85. Ke4 {[%emt 0:00:22]} Ra6 {[%emt 0:00:30]} 86. Re8+ {[%emt 0:00:34]} Kf7 {[%emt 0:00:50]} 87. Rc8 {[%emt 0:00:16]} Ke6 {[%emt 0:00:11]} 88. Rg8 {[%emt 0:00:40]} c3 {[%emt 0:00:49]} 89. Bxc3 {[%emt 0:00:53]} 1/2-1/2

[Event "71st RUS-ch Higher League 2018"]
[Site "Yaroslavl"]
[Date "2018.07.03"]
[Round "7"]
[White "Okrugin, Sergey"]
[Black "Bimiev, Ahmad"]
[Result "1/2-1/2"]
[ECO "B23"]
[WhiteElo "2334"]
[BlackElo "2125"]
[Annotator "NA"]
[PlyCount "82"]
[EventDate "2018.06.26"]
[EventType "swiss"]
[EventCountry "RUS"]
[SourceTitle "playchess.com"]
[Source "ChessBase"]
[SourceQuality "1"]
[TimeControl "40/5400+30:1800+30"]

1. e4 {[%emt 0:00:00]} c5 {[%emt 0:00:00]} 2. Nc3 {[%emt 0:00:00]} d6 {[%emt 0:00:00]} 3. Nf3 {[%emt 0:00:00]} Nf6 {[%emt 0:00:06]} 4. g3 {[%emt 0:00:07]} g6 {[%emt 0:01:31]} 5. Bg2 {[%emt 0:00:09]} Bg7 {[%emt 0:00:07]} 6. O-O {[%emt 0:00:08]} Nc6 {[%emt 0:08:52]} 7. Re1 {[%emt 0:08:47]} e5 {[%emt 0:10:00]} 8. d3 {[%emt 0:01:03]} h6 {[%emt 0:02:03]} 9. Nd2 {[%emt 0:00:38]} Nd4 {[%emt 0:11:34]} 10. Nd5 {[%emt 0:03:40]} Nxd5 {[%emt 0:01:17]} 11. exd5 {[%emt 0:00:18]} O-O {[%emt 0:00:16]} 12. c3 {[%emt 0:00:32]} Nf5 {[%emt 0:00:15]} 13. a4 {[%emt 0:05:26]} b6 {[%emt 0:10:18]} 14. Nc4 {[%emt 0:13:28]} Ba6 {[%emt 0:12:08]} 15. Qb3 {[%emt 0:13:36]} g5 {[%emt 0:13:16]} 16. Bd2 {[%emt 0:02:13]} Rb8 {[%emt 0:00:47]} 17. Qc2 {[%emt 0:03:17]} Ne7 {[%emt 0:03:10]} 18. f4 {[%emt 0:04:35]} gxf4 {[%emt 0:01:10]} 19. gxf4 {[%emt 0:00:22]} Bxc4 {[%emt 0:00:13]} 20. dxc4 {[%emt 0:00:08]} f5 {[%emt 0:00:09]} 21. Rad1 {[%emt 0:12:00]} e4 {[%emt 0:00:11]} 22. Be3 {[%emt 0:01:39]} Ng6 {[%emt 0:03:16]} 23. b4 {[%emt 0:04:00]} Qf6 {[%emt 0:01:02]} 24. Rc1 {[%emt 0:01:05]} Kh7 {[%emt 0:00:29]} 25. Kh1 {[%emt 0:02:02]} Rg8 {[%emt 0:01:58]} 26. Rg1 {[%emt 0:04:28]} Qh4 {[%emt 0:01:57]} 27. Qd2 {[%emt 0:02:32]} a5 {[%emt 0:06:09]} 28. Rb1 {[%emt 0:03:10]} h5 {[%emt 0:06:57]} 29. bxa5 {[%emt 0:03:29]} bxa5 {[%emt 0:00:04]} 30. Rb5 {[%emt 0:00:07]} Bh6 {[%emt 0:00:37]} 31. Rf1 {[%emt 0:01:00]} Qf6 {[%emt 0:01:55]} 32. Rfb1 {[%emt 0:04:01]} Ra8 {[%emt 0:00:55]} 33. Rb7+ {[%emt 0:00:39]} Rg7 {[%emt 0:00:06]} 34. Qe2 {[%emt 0:01:45]} Ra7 {[%emt 0:02:36]} 35. Rxa7 {[%emt 0:00:18]} Rxa7 {[%emt 0:00:04]} 36. Qxh5 {[%emt 0:00:44]} Qxc3 {[%emt 0:00:09]} 37. Qxf5 {[%emt 0:00:15]} Qxe3 {[%emt 0:01:22]} 38. Bxe4 {[%emt 0:00:08]} Rg7 {[%emt 0:00:12]} 39. Rg1 {[%emt 0:00:21]} Qxf4 {[%emt 0:01:01]} 40. Rxg6 {[%emt 0:00:00]} Qxf5 {[%emt 0:00:00]} 41. Rxg7+ {[%emt 0:00:28]} Kxg7 {[%emt 0:00:13]} 1/2-1/2

[Event "71st RUS-ch Higher League 2018"]
[Site "Yaroslavl"]
[Date "2018.07.04"]
[Round "8"]
[White "Najer, Evgeniy"]
[Black "Alekseenko, Kirill"]
[Result "0-1"]
[ECO "E01"]
[WhiteElo "2668"]
[BlackElo "2621"]
[Annotator "ChessBase"]
[PlyCount "106"]
[EventDate "2018.06.26"]
[EventType "swiss"]
[EventCountry "RUS"]
[SourceTitle "playchess.com"]
[Source "ChessBase"]
[SourceQuality "1"]
[TimeControl "40/5400+30:1800+30"]

1. d4 {[%emt 0:00:34]} Nf6 {[%emt 0:00:15]} 2. c4 {[%emt 0:00:20]} e6 {[%emt 0:00:31]} 3. g3 {[%emt 0:00:06]} d5 {[%emt 0:02:25]} 4. Bg2 {[%emt 0:00:27]} Bb4+ {[%emt 0:00:25]} 5. Bd2 {[%emt 0:00:09]} Be7 {[%emt 0:00:32]} 6. Nf3 {[%emt 0:00:07]} O-O {[%emt 0:00:34]} 7. O-O {[%emt 0:00:14]} Nbd7 {[%emt 0:00:58]} 8. Qb3 {[%emt 0:11:05]} Nb6 {[%emt 0:01:10]} 9. c5 {[%emt 0:03:36]} Nc4 {[%emt 0:00:15]} 10. Rc1 {[%emt 0:00:30]} b6 {[%emt 0:10:28]} 11. c6 {[%emt 0:02:29]} Ne4 {[%emt 0:05:00]} 12. Be1 {[%emt 0:08:14]} a5 {[%emt 0:12:26]} 13. Nbd2 {[%emt 0:17:02]} Ncxd2 {[%emt 0:12:02]} 14. Nxd2 {[%emt 0:00:50]} Nxd2 {[%emt 0:01:32]} 15. Bxd2 {[%emt 0:00:06]} Ba6 {[%emt 0:00:35]} 16. Bf3 {[%emt 0:04:59]} Bd6 {[%emt 0:03:14]} 17. e4 {[%emt 0:03:12]} dxe4 {[%emt 0:05:55]} 18. Bxe4 {[%emt 0:00:35]} e5 {[%emt 0:02:03]} 19. dxe5 {[%emt 0:16:20]} Bxe5 {[%emt 0:00:05]} 20. Bc3 {[%emt 0:00:10]} Qf6 {[%emt 0:16:18]} 21. Bxe5 {[%emt 0:00:35]} Qxe5 {[%emt 0:00:04]} 22. Re1 {[%emt 0:00:11]} Qf6 {[%emt 0:04:47]} 23. Re3 {[%emt 0:14:08]} Rad8 {[%emt 0:01:27]} 24. Rae1 {[%emt 0:01:13]} g6 {[%emt 0:04:57]} 25. Qc2 {[%emt 0:06:31]} Bc8 {[%emt 0:02:33]} 26. h4 {[%emt 0:00:21]} Rd6 {[%emt 0:01:29]} 27. Rf3 {[%emt 0:01:33]} Qd4 {[%emt 0:02:26]} 28. Rd3 {[%emt 0:01:50]} Qb4 {[%emt 0:00:13]} 29. Ree3 {[%emt 0:00:23]} Ba6 {[%emt 0:02:49]} 30. Rxd6 {[%emt 0:01:30]} Qxd6 {[%emt 0:00:01]} 31. Qc3 {[%emt 0:01:06]} Re8 {[%emt 0:01:11]} 32. h5 {[%emt 0:00:12]} Qd1+ {[%emt 0:00:23]} 33. Re1 {[%emt 0:03:23]} Qxh5 {[%emt 0:00:04]} 34. Bg2 {[%emt 0:01:51]} Rxe1+ {[%emt 0:01:17]} 35. Qxe1 {[%emt 0:00:01]} Qe2 {[%emt 0:00:10]} 36. Qc3 {[%emt 0:00:22]} Qd1+ {[%emt 0:00:34]} 37. Kh2 {[%emt 0:00:02]} Qd6 {[%emt 0:02:20]} 38. Qe3 {[%emt 0:00:06]} Kg7 {[%emt 0:00:50]} 39. a3 {[%emt 0:00:31]} Bc8 {[%emt 0:00:56]} 40. Qc3+ {[%emt 0:00:00]} Qf6 {[%emt 0:00:00]} 41. Qd2 {[%emt 0:02:28]} h5 {[%emt 0:05:39]} 42. Kg1 {[%emt 0:01:47]} Be6 {[%emt 0:03:28]} 43. f4 {[%emt 0:04:14]} Kf8 {[%emt 0:01:35]} 44. Kh2 {[%emt 0:00:56]} Ke8 {[%emt 0:01:39]} 45. b4 {[%emt 0:01:41]} axb4 {[%emt 0:00:20]} 46. axb4 {[%emt 0:00:04]} Qd8 {[%emt 0:00:57]} 47. Qc3 {[%emt 0:04:40]} Qd6 {[%emt 0:01:01]} 48. Bh3 {[%emt 0:06:00]} Ke7 {[%emt 0:01:29]} 49. Bxe6 {[%emt 0:02:53]} Qxe6 {[%emt 0:00:06]} 50. Kg1 {[%emt 0:00:57]} Qe4 {[%emt 0:02:49]} 51. Kh2 {[%emt 0:01:16]} Ke6 {[%emt 0:01:19]} 52. Kg1 {[%emt 0:00:15]} Kf5 {[%emt 0:03:00]} 53. Kh2 {[%emt 0:01:06]} Qe2+ {[%emt 0:00:13]} 0-1

[Event "71st RUS-ch Higher League 2018"]
[Site "Yaroslavl"]
[Date "2018.07.04"]
[Round "8"]
[White "Motylev, Alexander"]
[Black "Rakhmanov, Aleksandr"]
[Result "1/2-1/2"]
[ECO "C42"]
[WhiteElo "2659"]
[BlackElo "2627"]
[Annotator "ChessBase"]
[PlyCount "85"]
[EventDate "2018.06.26"]
[EventType "swiss"]
[EventCountry "RUS"]
[SourceTitle "playchess.com"]
[Source "ChessBase"]
[SourceQuality "1"]
[TimeControl "40/5400+30:1800+30"]

1. e4 {[%emt 0:00:00]} e5 {[%emt 0:00:00]} 2. Nf3 {[%emt 0:00:00]} Nf6 {[%emt 0:00:00]} 3. Nxe5 {[%emt 0:01:37]} d6 {[%emt 0:00:00]} 4. Nd3 {[%emt 0:01:32]} Nxe4 {[%emt 0:00:35]} 5. Qe2 {[%emt 0:00:06]} Qe7 {[%emt 0:00:21]} 6. Nf4 {[%emt 0:00:05]} Nf6 {[%emt 0:08:52]} 7. d4 {[%emt 0:00:41]} Qxe2+ {[%emt 0:03:16]} 8. Bxe2 {[%emt 0:00:50]} Nc6 {[%emt 0:01:01]} 9. c3 {[%emt 0:00:46]} g6 {[%emt 0:02:27]} 10. f3 {[%emt 0:04:28]} Bg7 {[%emt 0:09:08]} 11. h4 {[%emt 0:03:43]} h5 {[%emt 0:01:20]} 12. Na3 {[%emt 0:00:51]} Ne7 {[%emt 0:03:32]} 13. Nb5 {[%emt 0:07:11]} Kd8 {[%emt 0:01:20]} 14. Kf2 {[%emt 0:03:02]} a6 {[%emt 0:03:30]} 15. Na3 {[%emt 0:01:37]} b6 {[%emt 0:13:24]} 16. Bc4 {[%emt 0:05:44]} Rf8 {[%emt 0:01:24]} 17. Nc2 {[%emt 0:01:54]} Bb7 {[%emt 0:01:53]} 18. Ne3 {[%emt 0:02:38]} Kd7 {[%emt 0:05:03]} 19. a4 {[%emt 0:01:36]} Bc6 {[%emt 0:04:01]} 20. Rd1 {[%emt 0:11:10]} Bh6 {[%emt 0:06:51]} 21. Nd3 {[%emt 0:03:42]} Bxe3+ {[%emt 0:05:20]} 22. Bxe3 {[%emt 0:00:41]} Bd5 {[%emt 0:00:40]} 23. b3 {[%emt 0:02:20]} Bxc4 {[%emt 0:06:22]} 24. bxc4 {[%emt 0:00:07]} Nf5 {[%emt 0:00:57]} 25. Bf4 {[%emt 0:01:37]} Ng8 {[%emt 0:06:40]} 26. c5 {[%emt 0:15:26]} Nxh4 {[%emt 0:00:21]} 27. cxd6 {[%emt 0:03:44]} cxd6 {[%emt 0:00:13]} 28. c4 {[%emt 0:00:42]} Nf5 {[%emt 0:09:52]} 29. c5 {[%emt 0:00:52]} h4 {[%emt 0:00:28]} 30. cxb6 {[%emt 0:02:12]} Nge7 {[%emt 0:00:13]} 31. Rab1 {[%emt 0:19:03]} Nd5 {[%emt 0:00:54]} 32. Bd2 {[%emt 0:00:11]} Rab8 {[%emt 0:01:58]} 33. b7 {[%emt 0:00:25]} Nfe7 {[%emt 0:00:44]} 34. Rdc1 {[%emt 0:01:23]} Nc6 {[%emt 0:01:19]} 35. Nf4 {[%emt 0:00:37]} Nce7 {[%emt 0:00:26]} 36. Rh1 {[%emt 0:04:21]} Nxf4 {[%emt 0:01:13]} 37. Bxf4 {[%emt 0:00:05]} Nd5 {[%emt 0:00:05]} 38. Rxh4 {[%emt 0:00:35]} Kc6 {[%emt 0:02:15]} 39. Rc1+ {[%emt 0:00:29]} Kd7 {[%emt 0:00:18]} 40. Rb1 {[%emt 0:00:00]} Kc6 {[%emt 0:00:00]} 41. Bg3 {[%emt 0:03:59]} Rfe8 {[%emt 0:11:14]} 42. Rhh1 {[%emt 0:10:13]} f5 {[%emt 0:01:27]} 43. Rbc1+ {[%emt 0:11:00]} 1/2-1/2